[Event "2026 Biel Blitz Open"]
[Site "Biel, CH"]
[Date "2026.07.19"]
[Round "10"]
[White "Kozak, Adam"]
[Black "Thorfinnsson, Bjorn"]
[Result "1/2-1/2"]
[Board "4"]
[TimeControl "180+2"]
[WhiteFideId "753246"]
[BlackFideId "2300982"]
[WhiteElo "2537"]
[BlackElo "2396"]
[WhiteTitle "GM"]
[BlackTitle "IM"]
[WhiteClock "0:00:08"]
[BlackClock "0:00:39"]
[Variant "Standard"]
[EndDate "2026.07.19"]
[EndTime "14:58:08"]

1. Nf3 {[%clk 0:02:54]}  d5 {[%clk 0:03:03]} 2. b3 {[%clk 0:02:56]}  c5 {[%clk 0:03:03]} 3. e3 {[%clk 0:02:54]}  a6 {[%clk 0:03:04]}
4. c4 {[%clk 0:02:46]}  dxc4 {[%clk 0:02:57]} 5. bxc4 {[%clk 0:02:39]}  Nf6 {[%clk 0:02:55]} 6. Bb2 {[%clk 0:02:40]}  g6 {[%clk 0:02:56]}
7. Nc3 {[%clk 0:02:24]}  Bg7 {[%clk 0:02:57]} 8. Ne4 {[%clk 0:02:24]}  Nbd7 {[%clk 0:02:54]} 9. Be2 {[%clk 0:02:21]}  O-O {[%clk 0:02:54]}
10. Nxf6+ {[%clk 0:02:21]}  Nxf6 {[%clk 0:02:51]} 11. O-O {[%clk 0:02:19]}  Bf5 {[%clk 0:02:30]} 12. d3 {[%clk 0:01:56]}  b5 {[%clk 0:02:31]}
13. d4 {[%clk 0:01:42]}  cxd4 {[%clk 0:02:26]} 14. Nxd4 {[%clk 0:01:40]}  bxc4 {[%clk 0:02:09]} 15. Nxf5 {[%clk 0:01:33]}  gxf5 {[%clk 0:02:04]}
16. Bxc4 {[%clk 0:01:33]}  Qxd1 {[%clk 0:01:59]} 17. Rfxd1 {[%clk 0:01:24]}  Rfc8 {[%clk 0:01:57]} 18. Bd3 {[%clk 0:01:08]}  Ne4 {[%clk 0:01:52]}
19. Bxg7 {[%clk 0:01:09]}  Kxg7 {[%clk 0:01:53]} 20. f3 {[%clk 0:01:10]}  Nd6 {[%clk 0:01:53]} 21. Rac1 {[%clk 0:01:10]}  a5 {[%clk 0:01:49]}
22. Kf2 {[%clk 0:01:06]}  Kf6 {[%clk 0:01:50]} 23. g4 {[%clk 0:00:50]}  fxg4 {[%clk 0:01:16]} 24. fxg4 {[%clk 0:00:51]}  h6 {[%clk 0:01:17]}
25. Kf3 {[%clk 0:00:49]}  Ke5 {[%clk 0:01:17]} 26. Rxc8 {[%clk 0:00:20]}  Rxc8 {[%clk 0:01:18]} 27. Rb1 {[%clk 0:00:21]}  Rc3 {[%clk 0:01:19]}
28. Rb3 {[%clk 0:00:22]}  Rxb3 {[%clk 0:00:52]} 29. axb3 {[%clk 0:00:23]}  e6 {[%clk 0:00:44]} 30. Bc2 {[%clk 0:00:17]}  f5 {[%clk 0:00:43]}
31. gxf5 {[%clk 0:00:15]}  exf5 {[%clk 0:00:44]} 32. Bd3 {[%clk 0:00:16]}  Nb7 {[%clk 0:00:40]} 33. Bc2 {[%clk 0:00:13]}  Nc5 {[%clk 0:00:41]}
34. Ke2 {[%clk 0:00:13]}  f4 {[%clk 0:00:36]} 35. Kf3 {[%clk 0:00:10]}  fxe3 {[%clk 0:00:36]} 36. Kxe3 {[%clk 0:00:11]}  Ne6 {[%clk 0:00:37]}
37. Bd3 {[%clk 0:00:10]}  Nc5 {[%clk 0:00:38]} 38. Bc2 {[%clk 0:00:08]}  Ne6 {[%clk 0:00:38]} 39. Bd3 {[%clk 0:00:09]}  Nc5 {[%clk 0:00:39]}
40. Bc2 {[%clk 0:00:08]}  Ne6 {[%clk 0:00:40]} 1/2-1/2

[Event "2026 Biel Blitz Open"]
[Site "Biel, CH"]
[Date "2026.07.19"]
[Round "10"]
[White "Savitha Shri B"]
[Black "Rappazzo, Johannes"]
[Result "1-0"]
[Board "5"]
[TimeControl "180+2"]
[WhiteFideId "35061887"]
[BlackFideId "1340069"]
[WhiteElo "2161"]
[BlackElo "2032"]
[WhiteTitle "IM"]
[BlackTitle "FM"]
[WhiteClock "0:00:05"]
[BlackClock "0:00:12"]
[Variant "Standard"]
[EndDate "2026.07.19"]
[EndTime "15:00:28"]

1. e4 {[%clk 0:03:03]}  c5 {[%clk 0:03:04]} 2. Nf3 {[%clk 0:03:04]}  d6 {[%clk 0:03:06]} 3. d4 {[%clk 0:03:04]}  cxd4 {[%clk 0:03:07]}
4. Nxd4 {[%clk 0:03:05]}  Nf6 {[%clk 0:03:08]} 5. Nc3 {[%clk 0:03:06]}  a6 {[%clk 0:03:10]} 6. Be3 {[%clk 0:03:06]}  e5 {[%clk 0:03:11]}
7. Nb3 {[%clk 0:03:08]}  Be6 {[%clk 0:03:12]} 8. h3 {[%clk 0:03:09]}  Be7 {[%clk 0:03:12]} 9. g4 {[%clk 0:03:10]}  d5 {[%clk 0:03:06]}
10. exd5 {[%clk 0:02:32]}  Nxd5 {[%clk 0:03:07]} 11. Nxd5 {[%clk 0:02:29]}  Qxd5 {[%clk 0:03:07]} 12. Qxd5 {[%clk 0:02:28]}  Bxd5 {[%clk 0:03:08]}
13. Rg1 {[%clk 0:02:29]}  O-O {[%clk 0:03:04]} 14. O-O-O {[%clk 0:02:30]}  Bc6 {[%clk 0:02:47]} 15. Bc4 {[%clk 0:02:27]}  b5 {[%clk 0:02:30]}
16. Bd5 {[%clk 0:02:27]}  Bxd5 {[%clk 0:02:28]} 17. Rxd5 {[%clk 0:02:28]}  Nc6 {[%clk 0:02:29]} 18. Bc5 {[%clk 0:02:19]}  Bg5+ {[%clk 0:02:15]}
19. Kb1 {[%clk 0:02:20]}  Rfd8 {[%clk 0:02:16]} 20. Rgd1 {[%clk 0:02:05]}  Rxd5 {[%clk 0:02:17]} 21. Rxd5 {[%clk 0:02:06]}  Rd8 {[%clk 0:02:16]}
22. Rxd8+ {[%clk 0:02:06]}  Nxd8 {[%clk 0:02:18]} 23. Bd6 {[%clk 0:02:02]}  Nc6 {[%clk 0:01:45]} 24. Nc5 {[%clk 0:02:03]}  a5 {[%clk 0:01:45]}
25. Ne4 {[%clk 0:01:53]}  Bd8 {[%clk 0:01:37]} 26. Nc3 {[%clk 0:01:48]}  Bb6 {[%clk 0:01:28]} 27. Nxb5 {[%clk 0:01:33]}  Bxf2 {[%clk 0:01:29]}
28. Nc3 {[%clk 0:01:35]}  f6 {[%clk 0:01:22]} 29. Ne4 {[%clk 0:01:33]}  Bb6 {[%clk 0:01:19]} 30. c4 {[%clk 0:01:32]}  Kf7 {[%clk 0:01:17]}
31. a3 {[%clk 0:01:30]}  Ke6 {[%clk 0:01:14]} 32. b4 {[%clk 0:01:30]}  f5 {[%clk 0:00:56]} 33. gxf5+ {[%clk 0:01:25]}  Kxf5 {[%clk 0:00:58]}
34. c5 {[%clk 0:01:02]}  Bd8 {[%clk 0:00:40]} 35. b5 {[%clk 0:00:48]}  Kxe4 {[%clk 0:00:21]} 36. bxc6 {[%clk 0:00:48]}  Kd5 {[%clk 0:00:22]}
37. c7 {[%clk 0:00:44]}  Bxc7 {[%clk 0:00:23]} 38. Bxc7 {[%clk 0:00:46]}  Kxc5 {[%clk 0:00:21]} 39. Bxe5 {[%clk 0:00:46]}  g5 {[%clk 0:00:22]}
40. Bf6 {[%clk 0:00:45]}  h6 {[%clk 0:00:23]} 41. Bc3 {[%clk 0:00:37]}  Kb5 {[%clk 0:00:16]} 42. Bd2 {[%clk 0:00:33]}  a4 {[%clk 0:00:15]}
43. Kc2 {[%clk 0:00:30]}  Kc4 {[%clk 0:00:16]} 44. Be3 {[%clk 0:00:30]}  Kd5 {[%clk 0:00:13]} 45. Kd3 {[%clk 0:00:32]}  Ke5 {[%clk 0:00:12]}
46. Bc1 {[%clk 0:00:25]}  Kd5 {[%clk 0:00:08]} 47. Kc3 {[%clk 0:00:24]}  Kc5 {[%clk 0:00:09]} 48. Bd2 {[%clk 0:00:17]}  Kb5 {[%clk 0:00:07]}
49. Kd4 {[%clk 0:00:24]}  Kb6 {[%clk 0:00:07]} 50. Ke5 {[%clk 0:00:20]}  Kc5 {[%clk 0:00:06]} 51. Kf5 {[%clk 0:00:21]}  Kc4 {[%clk 0:00:06]}
52. Kg6 {[%clk 0:00:22]}  Kd3 {[%clk 0:00:06]} 53. Bb4 {[%clk 0:00:15]}  Ke4 {[%clk 0:00:07]} 54. Kxh6 {[%clk 0:00:13]}  Kf4 {[%clk 0:00:08]}
55. Kg6 {[%clk 0:00:11]}  Kg3 {[%clk 0:00:05]} 56. Kxg5 {[%clk 0:00:08]}  Kxh3 {[%clk 0:00:06]} 57. Kf5 {[%clk 0:00:09]}  Kg3 {[%clk 0:00:07]}
58. Ke5 {[%clk 0:00:11]}  Kf3 {[%clk 0:00:08]} 59. Kd5 {[%clk 0:00:12]}  Kf4 {[%clk 0:00:09]} 60. Bd6+ {[%clk 0:00:08]}  Kf5 {[%clk 0:00:10]}
61. Be5 {[%clk 0:00:09]}  Kg6 {[%clk 0:00:10]} 62. Kc5 {[%clk 0:00:10]}  Kf7 {[%clk 0:00:11]} 63. Kb5 {[%clk 0:00:06]}  Ke6 {[%clk 0:00:12]}
64. Kc6 {[%clk 0:00:05]} 1-0

[Event "2026 Biel Blitz Open"]
[Site "Biel, CH"]
[Date "2026.07.19"]
[Round "10"]
[White "Safarli, Eltaj"]
[Black "Vihaan Dumir"]
[Result "1-0"]
[Board "6"]
[TimeControl "180+2"]
[WhiteFideId "13402129"]
[BlackFideId "25901010"]
[WhiteElo "2619"]
[BlackElo "1965"]
[WhiteTitle "GM"]
[BlackTitle "CM"]
[WhiteClock "0:01:32"]
[BlackClock "0:00:03"]
[Variant "Standard"]
[EndDate "2026.07.19"]
[EndTime "14:56:58"]

1. e4 {[%clk 0:03:03]}  c5 {[%clk 0:03:03]} 2. Nf3 {[%clk 0:03:04]}  e6 {[%clk 0:03:04]} 3. Nc3 {[%clk 0:03:04]}  a6 {[%clk 0:03:02]}
4. g3 {[%clk 0:03:04]}  b5 {[%clk 0:02:58]} 5. Bg2 {[%clk 0:03:04]}  Bb7 {[%clk 0:02:59]} 6. d4 {[%clk 0:03:06]}  cxd4 {[%clk 0:02:57]}
7. Nxd4 {[%clk 0:03:07]}  Nc6 {[%clk 0:02:46]} 8. O-O {[%clk 0:03:05]}  Qb6 {[%clk 0:02:39]} 9. Nb3 {[%clk 0:02:32]}  d6 {[%clk 0:02:29]}
10. a4 {[%clk 0:02:33]}  b4 {[%clk 0:02:20]} 11. a5 {[%clk 0:02:34]}  Qc7 {[%clk 0:02:20]} 12. Na4 {[%clk 0:02:35]}  Nf6 {[%clk 0:02:02]}
13. Be3 {[%clk 0:02:35]}  Be7 {[%clk 0:01:59]} 14. Bb6 {[%clk 0:02:25]}  Qd7 {[%clk 0:01:52]} 15. f4 {[%clk 0:02:24]}  O-O {[%clk 0:01:47]}
16. e5 {[%clk 0:02:21]}  dxe5 {[%clk 0:01:30]} 17. fxe5 {[%clk 0:02:22]}  Nd5 {[%clk 0:01:24]} 18. Nac5 {[%clk 0:02:23]}  Qc8 {[%clk 0:01:05]}
19. Nxb7 {[%clk 0:02:23]}  Qxb7 {[%clk 0:00:59]} 20. Bxd5 {[%clk 0:02:24]}  exd5 {[%clk 0:01:00]} 21. Qxd5 {[%clk 0:02:25]}  Rac8 {[%clk 0:00:56]}
22. Rad1 {[%clk 0:02:23]}  Nd8 {[%clk 0:00:42]} 23. Qxb7 {[%clk 0:02:01]}  Nxb7 {[%clk 0:00:43]} 24. Rd7 {[%clk 0:02:03]}  Bc5+ {[%clk 0:00:40]}
25. Kh1 {[%clk 0:01:52]}  Bxb6 {[%clk 0:00:30]} 26. axb6 {[%clk 0:01:53]}  Nd8 {[%clk 0:00:27]} 27. b7 {[%clk 0:01:45]}  Rb8 {[%clk 0:00:28]}
28. Nc5 {[%clk 0:01:34]}  Re8 {[%clk 0:00:29]} 29. Rc7 {[%clk 0:01:32]}  Ne6 {[%clk 0:00:19]} 30. Nxe6 {[%clk 0:01:31]}  Rxe6 {[%clk 0:00:14]}
31. Rfxf7 {[%clk 0:01:32]}  Rxe5 {[%clk 0:00:12]} 32. Rxg7+ {[%clk 0:01:33]}  Kf8 {[%clk 0:00:13]} 33. Rxh7 {[%clk 0:01:34]}  Kg8 {[%clk 0:00:08]}
34. Rhe7 {[%clk 0:01:30]}  Rxe7 {[%clk 0:00:05]} 35. Rxe7 {[%clk 0:01:31]}  a5 {[%clk 0:00:03]} 36. Rc7 {[%clk 0:01:32]} 1-0

[Event "2026 Biel Blitz Open"]
[Site "Biel, CH"]
[Date "2026.07.19"]
[Round "10"]
[White "Alexakis, Dimitris"]
[Black "Fogo Esquivel, Levi Kalani Alexander"]
[Result "1-0"]
[Board "7"]
[TimeControl "180+2"]
[WhiteFideId "4277023"]
[BlackFideId "5183189"]
[WhiteElo "2459"]
[BlackElo "2219"]
[WhiteTitle "GM"]
[BlackTitle "FM"]
[WhiteClock "0:00:10"]
[BlackClock "0:00:14"]
[Variant "Standard"]
[EndDate "2026.07.19"]
[EndTime "14:59:48"]

1. e4 {[%clk 0:03:02]}  e5 {[%clk 0:03:04]} 2. Nf3 {[%clk 0:03:03]}  d5 {[%clk 0:03:05]} 3. d4 {[%clk 0:02:53]}  exd4 {[%clk 0:03:05]}
4. exd5 {[%clk 0:02:46]}  Qxd5 {[%clk 0:03:06]} 5. Qxd4 {[%clk 0:02:24]}  Qxd4 {[%clk 0:02:44]} 6. Nxd4 {[%clk 0:02:24]}  Bc5 {[%clk 0:02:42]}
7. Nb5 {[%clk 0:02:19]}  Bb6 {[%clk 0:02:36]} 8. Bf4 {[%clk 0:02:13]}  Na6 {[%clk 0:02:34]} 9. N1c3 {[%clk 0:02:13]}  Nf6 {[%clk 0:02:33]}
10. O-O-O {[%clk 0:02:05]}  O-O {[%clk 0:02:33]} 11. f3 {[%clk 0:01:58]}  Be6 {[%clk 0:02:33]} 12. Nd4 {[%clk 0:01:56]}  Bd7 {[%clk 0:02:25]}
13. Bg5 {[%clk 0:01:43]}  Nc5 {[%clk 0:02:08]} 14. Bxf6 {[%clk 0:01:38]}  gxf6 {[%clk 0:02:09]} 15. Nd5 {[%clk 0:01:37]}  Kg7 {[%clk 0:02:05]}
16. Ne2 {[%clk 0:01:10]}  Rfd8 {[%clk 0:01:40]} 17. Ng3 {[%clk 0:01:02]}  Be6 {[%clk 0:00:56]} 18. Bc4 {[%clk 0:00:48]}  c6 {[%clk 0:00:49]}
19. Ne3 {[%clk 0:00:31]}  Nb3+ {[%clk 0:00:43]} 20. axb3 {[%clk 0:00:25]}  Bxe3+ {[%clk 0:00:43]} 21. Kb1 {[%clk 0:00:26]}  Bd4 {[%clk 0:00:37]}
22. c3 {[%clk 0:00:23]}  Be5 {[%clk 0:00:38]} 23. f4 {[%clk 0:00:23]}  Bc7 {[%clk 0:00:39]} 24. Kc2 {[%clk 0:00:18]}  Bxc4 {[%clk 0:00:32]}
25. bxc4 {[%clk 0:00:19]}  Kg6 {[%clk 0:00:34]} 26. Rhf1 {[%clk 0:00:15]}  f5 {[%clk 0:00:34]} 27. Rde1 {[%clk 0:00:10]}  Re8 {[%clk 0:00:35]}
28. Rd1 {[%clk 0:00:07]}  Rad8 {[%clk 0:00:36]} 29. Rxd8 {[%clk 0:00:06]}  Rxd8 {[%clk 0:00:38]} 30. Ne2 {[%clk 0:00:07]}  Re8 {[%clk 0:00:36]}
31. Ng1 {[%clk 0:00:05]}  h5 {[%clk 0:00:34]} 32. Kd3 {[%clk 0:00:04]}  h4 {[%clk 0:00:35]} 33. Nf3 {[%clk 0:00:05]}  Kh5 {[%clk 0:00:35]}
34. Nd4 {[%clk 0:00:06]}  Kg6 {[%clk 0:00:30]} 35. c5 {[%clk 0:00:06]}  Re4 {[%clk 0:00:21]} 36. g3 {[%clk 0:00:07]}  hxg3 {[%clk 0:00:22]}
37. hxg3 {[%clk 0:00:08]}  Re8 {[%clk 0:00:24]} 38. Rh1 {[%clk 0:00:08]}  Rd8 {[%clk 0:00:24]} 39. b4 {[%clk 0:00:08]}  a5 {[%clk 0:00:25]}
40. Kc4 {[%clk 0:00:06]}  axb4 {[%clk 0:00:26]} 41. cxb4 {[%clk 0:00:06]}  Re8 {[%clk 0:00:22]} 42. b5 {[%clk 0:00:06]}  cxb5+ {[%clk 0:00:22]}
43. Nxb5 {[%clk 0:00:07]}  Bb8 {[%clk 0:00:19]} 44. Nd6 {[%clk 0:00:06]}  Re3 {[%clk 0:00:11]} 45. Rh8 {[%clk 0:00:07]}  Ba7 {[%clk 0:00:09]}
46. Ra8 {[%clk 0:00:06]}  b5+ {[%clk 0:00:05]} 47. Nxb5 {[%clk 0:00:04]}  Bxc5 {[%clk 0:00:05]} 48. Kxc5 {[%clk 0:00:05]}  Kf6 {[%clk 0:00:06]}
49. Ra6+ {[%clk 0:00:05]}  Kg7 {[%clk 0:00:07]} 50. Nd4 {[%clk 0:00:06]}  Rc3+ {[%clk 0:00:03]} 51. Kd5 {[%clk 0:00:07]}  f6 {[%clk 0:00:07]}
52. Nxf5+ {[%clk 0:00:06]}  Kg6 {[%clk 0:00:09]} 53. Ke4 {[%clk 0:00:06]}  Rc1 {[%clk 0:00:08]} 54. g4 {[%clk 0:00:07]}  Re1+ {[%clk 0:00:09]}
55. Ne3 {[%clk 0:00:07]}  Kg7 {[%clk 0:00:10]} 56. f5 {[%clk 0:00:07]}  Re2 {[%clk 0:00:11]} 57. Ra7+ {[%clk 0:00:08]}  Kh6 {[%clk 0:00:12]}
58. Rf7 {[%clk 0:00:09]}  Kg5 {[%clk 0:00:13]} 59. Rg7+ {[%clk 0:00:10]}  Kh4 {[%clk 0:00:14]} 60. Kf3 {[%clk 0:00:10]} 1-0

[Event "2026 Biel Blitz Open"]
[Site "Biel, CH"]
[Date "2026.07.19"]
[Round "10"]
[White "Elmi, Saad Abobaker"]
[Black "Ling, Chenxuan"]
[Result "0-1"]
[Board "8"]
[TimeControl "180+2"]
[WhiteFideId "1553259"]
[BlackFideId "30983118"]
[WhiteElo "2409"]
[BlackElo "2235"]
[WhiteTitle "IM"]
[BlackTitle "CM"]
[WhiteClock "0:00:02"]
[BlackClock "0:01:13"]
[Variant "Standard"]
[EndDate "2026.07.19"]
[EndTime "14:57:17"]

1. Nf3 {[%clk 0:03:03]}  Nf6 {[%clk 0:03:03]} 2. e3 {[%clk 0:03:04]}  g6 {[%clk 0:03:03]} 3. c4 {[%clk 0:03:05]}  Bg7 {[%clk 0:03:04]}
4. Nc3 {[%clk 0:03:06]}  O-O {[%clk 0:03:04]} 5. b3 {[%clk 0:03:06]}  c6 {[%clk 0:03:05]} 6. Bb2 {[%clk 0:03:06]}  d5 {[%clk 0:03:06]}
7. d4 {[%clk 0:03:08]}  Bg4 {[%clk 0:03:04]} 8. Be2 {[%clk 0:03:06]}  Nbd7 {[%clk 0:03:05]} 9. O-O {[%clk 0:03:06]}  e6 {[%clk 0:03:05]}
10. h3 {[%clk 0:03:06]}  Bxf3 {[%clk 0:03:04]} 11. Bxf3 {[%clk 0:03:07]}  Rc8 {[%clk 0:03:05]} 12. Rc1 {[%clk 0:03:08]}  Qe7 {[%clk 0:03:04]}
13. Qc2 {[%clk 0:03:06]}  Rfe8 {[%clk 0:03:04]} 14. Rfd1 {[%clk 0:03:03]}  dxc4 {[%clk 0:02:52]} 15. bxc4 {[%clk 0:03:04]}  e5 {[%clk 0:02:53]}
16. Ba1 {[%clk 0:02:49]}  exd4 {[%clk 0:02:47]} 17. exd4 {[%clk 0:02:50]}  Nb6 {[%clk 0:02:39]} 18. Qb3 {[%clk 0:02:43]}  Qd7 {[%clk 0:02:27]}
19. a4 {[%clk 0:02:37]}  Qc7 {[%clk 0:02:23]} 20. a5 {[%clk 0:02:14]}  Nbd7 {[%clk 0:02:22]} 21. a6 {[%clk 0:02:15]}  bxa6 {[%clk 0:02:16]}
22. c5 {[%clk 0:02:00]}  h5 {[%clk 0:01:56]} 23. Be2 {[%clk 0:01:46]}  a5 {[%clk 0:01:50]} 24. Bc4 {[%clk 0:01:12]}  Nf8 {[%clk 0:01:50]}
25. Qa2 {[%clk 0:00:39]}  Ne4 {[%clk 0:01:45]} 26. Ba6 {[%clk 0:00:21]}  Nxc3 {[%clk 0:01:42]} 27. Bxc3 {[%clk 0:00:22]}  Rb8 {[%clk 0:01:39]}
28. Bxa5 {[%clk 0:00:21]}  Qf4 {[%clk 0:01:40]} 29. Bc4 {[%clk 0:00:14]}  Re7 {[%clk 0:01:24]} 30. d5 {[%clk 0:00:12]}  Rb2 {[%clk 0:01:24]}
31. Qxb2 {[%clk 0:00:09]}  Bxb2 {[%clk 0:01:25]} 32. d6 {[%clk 0:00:10]}  Rd7 {[%clk 0:01:19]} 33. Rc2 {[%clk 0:00:08]}  Bd4 {[%clk 0:01:20]}
34. Ba2 {[%clk 0:00:07]}  Qe4 {[%clk 0:01:12]} 35. Rcd2 {[%clk 0:00:04]}  Bxc5 {[%clk 0:01:13]} 36. Bc7 {[%clk 0:00:00]} 0-1

[Event "2026 Biel Blitz Open"]
[Site "Biel, CH"]
[Date "2026.07.19"]
[Round "10"]
[White "Kukushkin, Ivan"]
[Black "Haimovich, Tal"]
[Result "1-0"]
[Board "9"]
[TimeControl "180+2"]
[WhiteFideId "11634103"]
[BlackFideId "2801698"]
[WhiteElo "2265"]
[BlackElo "2347"]
[WhiteTitle "FM"]
[BlackTitle "IM"]
[WhiteClock "0:00:26"]
[BlackClock "0:00:03"]
[Variant "Standard"]
[EndDate "2026.07.19"]
[EndTime "15:05:32"]

1. e4 {[%clk 0:03:04]}  d5 {[%clk 0:03:03]} 2. exd5 {[%clk 0:03:04]}  Qxd5 {[%clk 0:03:04]} 3. Nc3 {[%clk 0:03:05]}  Qd8 {[%clk 0:03:06]}
4. Nf3 {[%clk 0:03:05]}  Nf6 {[%clk 0:03:06]} 5. Bc4 {[%clk 0:03:06]}  e6 {[%clk 0:03:02]} 6. d4 {[%clk 0:03:07]}  Be7 {[%clk 0:03:03]}
7. O-O {[%clk 0:03:06]}  Nbd7 {[%clk 0:03:03]} 8. Re1 {[%clk 0:02:59]}  O-O {[%clk 0:03:03]} 9. Ne5 {[%clk 0:02:50]}  Nb6 {[%clk 0:02:51]}
10. Bb3 {[%clk 0:02:44]}  Nbd5 {[%clk 0:02:45]} 11. Nxd5 {[%clk 0:02:40]}  exd5 {[%clk 0:02:45]} 12. c3 {[%clk 0:02:36]}  Bf5 {[%clk 0:02:37]}
13. Bg5 {[%clk 0:02:29]}  c6 {[%clk 0:02:35]} 14. Qe2 {[%clk 0:02:23]}  Re8 {[%clk 0:02:34]} 15. Bc2 {[%clk 0:02:16]}  Bxc2 {[%clk 0:02:33]}
16. Qxc2 {[%clk 0:02:17]}  h6 {[%clk 0:02:19]} 17. Bh4 {[%clk 0:02:15]}  Ne4 {[%clk 0:02:01]} 18. Bxe7 {[%clk 0:02:14]}  Rxe7 {[%clk 0:01:59]}
19. f3 {[%clk 0:02:06]}  Nd6 {[%clk 0:01:52]} 20. Ng4 {[%clk 0:01:52]}  Qc7 {[%clk 0:01:49]} 21. Qf2 {[%clk 0:01:39]}  Rae8 {[%clk 0:01:48]}
22. Qg3 {[%clk 0:01:24]}  Kf8 {[%clk 0:01:37]} 23. Rxe7 {[%clk 0:01:20]}  Qxe7 {[%clk 0:01:34]} 24. Ne5 {[%clk 0:01:18]}  Kg8 {[%clk 0:00:55]}
25. Re1 {[%clk 0:01:00]}  Qd8 {[%clk 0:00:54]} 26. Kf2 {[%clk 0:00:42]}  Qb6 {[%clk 0:00:42]} 27. Re2 {[%clk 0:00:39]}  f6 {[%clk 0:00:35]}
28. Qg6 {[%clk 0:00:20]}  Qd8 {[%clk 0:00:25]} 29. Ng4 {[%clk 0:00:16]}  Rxe2+ {[%clk 0:00:25]} 30. Kxe2 {[%clk 0:00:17]}  Qe8+ {[%clk 0:00:24]}
31. Qxe8+ {[%clk 0:00:18]}  Nxe8 {[%clk 0:00:25]} 32. Ne3 {[%clk 0:00:19]}  Kf7 {[%clk 0:00:25]} 33. Kd3 {[%clk 0:00:19]}  Ke6 {[%clk 0:00:26]}
34. b3 {[%clk 0:00:16]}  h5 {[%clk 0:00:27]} 35. h4 {[%clk 0:00:12]}  Nd6 {[%clk 0:00:28]} 36. g3 {[%clk 0:00:10]}  Nf5 {[%clk 0:00:26]}
37. Nxf5 {[%clk 0:00:11]}  Kxf5 {[%clk 0:00:27]} 38. Ke3 {[%clk 0:00:09]}  g5 {[%clk 0:00:28]} 39. Ke2 {[%clk 0:00:06]}  g4 {[%clk 0:00:26]}
40. Ke3 {[%clk 0:00:06]}  gxf3 {[%clk 0:00:18]} 41. Kxf3 {[%clk 0:00:07]}  b6 {[%clk 0:00:17]} 42. a3 {[%clk 0:00:08]}  a6 {[%clk 0:00:17]}
43. c4 {[%clk 0:00:03]}  dxc4 {[%clk 0:00:13]} 44. bxc4 {[%clk 0:00:05]}  b5 {[%clk 0:00:13]} 45. d5 {[%clk 0:00:06]}  cxd5 {[%clk 0:00:12]}
46. cxd5 {[%clk 0:00:06]}  a5 {[%clk 0:00:11]} 47. g4+ {[%clk 0:00:07]}  hxg4+ {[%clk 0:00:11]} 48. Ke3 {[%clk 0:00:09]}  b4 {[%clk 0:00:11]}
49. d6 {[%clk 0:00:10]}  Ke6 {[%clk 0:00:11]} 50. h5 {[%clk 0:00:10]}  bxa3 {[%clk 0:00:08]} 51. h6 {[%clk 0:00:11]}  a2 {[%clk 0:00:09]}
52. h7 {[%clk 0:00:13]}  a1=Q {[%clk 0:00:06]} 53. h8=Q {[%clk 0:00:12]}  Qe5+ {[%clk 0:00:07]} 54. Kf2 {[%clk 0:00:13]}  Kxd6 {[%clk 0:00:07]}
55. Qb8+ {[%clk 0:00:13]}  Ke6 {[%clk 0:00:08]} 56. Qc8+ {[%clk 0:00:14]}  Ke7 {[%clk 0:00:08]} 57. Qb7+ {[%clk 0:00:15]}  Kf8 {[%clk 0:00:08]}
58. Qc8+ {[%clk 0:00:16]}  Kf7 {[%clk 0:00:09]} 59. Qd7+ {[%clk 0:00:16]}  Kg6 {[%clk 0:00:09]} 60. Qxg4+ {[%clk 0:00:17]}  Qg5 {[%clk 0:00:11]}
61. Qd1 {[%clk 0:00:17]}  Qf4+ {[%clk 0:00:11]} 62. Kg2 {[%clk 0:00:18]}  Qe4+ {[%clk 0:00:10]} 63. Kf2 {[%clk 0:00:19]}  Qf5+ {[%clk 0:00:10]}
64. Kg2 {[%clk 0:00:20]}  Qg5+ {[%clk 0:00:10]} 65. Kf2 {[%clk 0:00:20]}  Qc5+ {[%clk 0:00:10]} 66. Kg2 {[%clk 0:00:21]}  f5 {[%clk 0:00:08]}
67. Qd3 {[%clk 0:00:19]}  Qb4 {[%clk 0:00:07]} 68. Qa6+ {[%clk 0:00:19]}  Kg5 {[%clk 0:00:08]} 69. Qc8 {[%clk 0:00:19]}  Qd2+ {[%clk 0:00:08]}
70. Kf3 {[%clk 0:00:18]}  Qd3+ {[%clk 0:00:08]} 71. Kf2 {[%clk 0:00:20]}  Qd4+ {[%clk 0:00:08]} 72. Kf3 {[%clk 0:00:20]}  Qe4+ {[%clk 0:00:08]}
73. Kf2 {[%clk 0:00:21]}  a4 {[%clk 0:00:09]} 74. Qd8+ {[%clk 0:00:22]}  Kf4 {[%clk 0:00:08]} 75. Qh4+ {[%clk 0:00:22]}  Ke5 {[%clk 0:00:09]}
76. Qe7+ {[%clk 0:00:23]}  Kd5 {[%clk 0:00:10]} 77. Qd7+ {[%clk 0:00:24]}  Kc5 {[%clk 0:00:10]} 78. Qa7+ {[%clk 0:00:26]}  Kb4 {[%clk 0:00:10]}
79. Qb6+ {[%clk 0:00:26]}  Ka3 {[%clk 0:00:10]} 80. Qd6+ {[%clk 0:00:27]}  Qb4 {[%clk 0:00:09]} 81. Qd3+ {[%clk 0:00:28]}  Qb3 {[%clk 0:00:10]}
82. Qxf5 {[%clk 0:00:28]}  Ka2 {[%clk 0:00:10]} 83. Qa5 {[%clk 0:00:26]}  a3 {[%clk 0:00:10]} 84. Ke2 {[%clk 0:00:26]}  Ka1 {[%clk 0:00:08]}
85. Kd2 {[%clk 0:00:25]}  a2 {[%clk 0:00:06]} 86. Kc1 {[%clk 0:00:25]}  Qb2 {[%clk 0:00:05]} 87. Kd1 {[%clk 0:00:23]}  Qd4 {[%clk 0:00:03]}
88. Kc1 {[%clk 0:00:26]}  Qc4 {[%clk 0:00:04]} 89. Kd2 {[%clk 0:00:25]}  Qb3 {[%clk 0:00:04]} 90. Kc1 {[%clk 0:00:24]}  Qb2 {[%clk 0:00:04]}
91. Kd1 {[%clk 0:00:26]}  Kb1 {[%clk 0:00:00]} 1-0